fUST/lending_fUST_20260218
["ID","MTS","AMOUNT","RATE_DAILY","PERIOD"]
[405859816,1771367439657,-900.0,0.00014768,2]
[405859818,1771367439667,-192.862732,0.00014795,2]
[405859820,1771367439677,-1101.30571462,0.00014795,2]
[405859822,1771367439687,-1500.0,0.00014795,2]
[405859824,1771367439696,-351.39047751,0.00014795,2]
[405859826,1771367439705,-1500.0,0.00014795,2]
[405859827,1771367439715,-1500.0,0.00014795,2]
[405859829,1771367439725,-1500.0,0.00014795,2]
[405859831,1771367439734,-506.86413659,0.00014795,2]
[405859833,1771367439743,-603.36618645,0.00014795,2]
[405859835,1771367439754,-275.08810024,0.00014795,2]
[405859837,1771367439763,-1500.0,0.00014795,2]
[405859839,1771367439773,-1500.0,0.00014795,2]
[405859841,1771367439782,-1572.74466354,0.00014795,2]
[405859843,1771367439791,-835.56323487,0.00014795,2]
[405859845,1771367439800,-1500.0,0.00014795,2]
[405859847,1771367439810,-1500.0,0.00014795,2]
[405859849,1771367439819,-1500.0,0.00014795,2]
[405859851,1771367439828,-241.11145167,0.00014795,2]
[405859853,1771367439838,-201.05896652,0.00014795,2]
[405859855,1771367439847,-1677.26470183,0.00014916,2]
[405859857,1771367439856,-585.97620956,0.00014916,2]
[405859859,1771367439865,-279.18927593,0.00014916,2]
[405859862,1771367439875,-1041.58564747,0.00014916,2]
[405859863,1771367439884,-2000.0,0.00014916,2]
[405859865,1771367439895,-1465.73136002,0.00014916,2]
[405859867,1771367439904,-1707.13865914,0.00014916,2]
[405859869,1771367439914,-2000.0,0.00014916,2]
[405859871,1771367439924,-2000.0,0.00014916,2]
[405859873,1771367439933,-2000.0,0.00014916,2]
[405859875,1771367439942,-2000.0,0.00014916,2]
[405859877,1771367439952,-219.50495845,0.00014916,2]
[405859879,1771367439961,-2000.0,0.00014916,2]
[405859881,1771367439970,-1378.55790479,0.00015,2]
[405859883,1771367439979,-177.0,0.0001515,2]
[405859885,1771367439988,-361.54423359,0.00015249,2]
[405859887,1771367439998,-1200.0,0.00015316,2]
[405859889,1771367440007,-1671.07165515,0.00015342,2]
[405859891,1771367440017,-2000.0,0.00015342,2]
[405859893,1771367440027,-2132.71685803,0.00015342,2]
[405859895,1771367440036,-660.06853083,0.00015342,2]
[405859897,1771367440045,-1547.72731502,0.00015342,2]
[405859899,1771367440055,-190.57343833,0.00015342,2]
[405859901,1771367440064,-2000.0,0.00015342,2]
[405859903,1771367440074,-2000.0,0.00015342,2]
[405859905,1771367440084,-1645.6959889,0.00015342,2]
[405859907,1771367440093,-1627.53325022,0.00015464,2]
[405859909,1771367440103,-2500.0,0.00015464,2]
[405859910,1771367440112,-2500.0,0.00015464,2]
[405859912,1771367440122,-2500.0,0.00015464,2]
[405859914,1771367440132,-2500.0,0.00015464,2]
[405859916,1771367440142,-2500.0,0.00015464,2]
[405859918,1771367440151,-720.0,0.00015506,2]
[405859920,1771367440161,-174.12918804,0.0001556,2]
[405859922,1771367440171,-150.19254399,0.000156,2]
[405859924,1771367440180,-1500.0,0.00015864,2]
[405859926,1771367440190,-348.95123698,0.0001589,2]
[405859928,1771367440199,-2500.0,0.0001589,2]
[405859930,1771367440209,-2500.0,0.0001589,2]
[405859932,1771367440219,-357.12689349,0.00016012,2]
[405859934,1771367440229,-3000.0,0.00016012,2]
[405859936,1771367440238,-2755.76148517,0.00016012,2]
[405859938,1771367440248,-782.18192634,0.00016012,2]
[405859940,1771367440258,-3000.0,0.00016012,2]
[405859942,1771367440268,-1514.7660938,0.00016412,2]
[405859944,1771367440277,-3000.0,0.00016438,2]
[405859946,1771367440288,-3000.0,0.00016438,2]
[405859948,1771367440298,-157.981,0.00016487,2]
[405859950,1771367440308,-3500.0,0.0001656,2]
[405859952,1771367440318,-1176.35565435,0.0001656,2]
[405859982,1771367440608,-31.12904403,0.0001656,2]
[405860230,1771367443591,-500.0,0.0001656,2]
[405861432,1771367500864,-578.75462383,0.0001314,2]
[405861435,1771367530454,-73.49537617,0.0001314,2]
[405861437,1771367842903,445.6,0.00014,10]
[405861438,1771367847973,232.88,0.0001358,4]
[405861439,1771367877311,5000.0,0.00013001,2]
[405861440,1771367881096,196.84,5.994e-05,2]
[405861441,1771367881455,196.84,5.994e-05,2]
[405861442,1771367899638,5000.0,0.00013001,2]
[405861443,1771367908422,5000.0,0.00013001,2]
[405861444,1771367923649,5000.0,0.00013001,2]
[405861445,1771367931396,5000.0,0.00013001,2]
[405861446,1771367946588,5000.0,0.00013001,2]
[405861447,1771367969499,5000.0,0.00013001,2]
[405861448,1771367977670,5000.0,0.00013001,2]
[405861449,1771367992909,5000.0,0.00013001,2]
[405861454,1771368001350,5000.0,0.00013001,2]
[405861455,1771368004695,152.49,0.0001,2]
[405861456,1771368005344,152.49,0.0001,2]
[405861457,1771368005874,152.49,0.0001,2]
[405861458,1771368006507,152.49,0.000101,2]
[405861459,1771368007153,152.49,0.000101,2]
[405861460,1771368008274,152.49,0.000101,2]
[405861461,1771368008772,152.49,0.000101,2]
[405861462,1771368009342,152.49,0.000102,2]
[405861463,1771368009960,152.49,0.000102,2]
[405861464,1771368010567,152.49,0.000102,2]
[405861465,1771368011152,152.49,0.000102,2]
[405861466,1771368011639,152.49,0.000103,2]
[405861467,1771368012198,152.49,0.000103,2]
[405861468,1771368013248,152.49,0.000103,2]
[405861469,1771368013805,152.49,0.000103,2]
[405861470,1771368014392,152.49,0.000103,2]
[405861471,1771368014951,152.49,0.000104,2]
[405861472,1771368015511,152.49,0.000104,2]
[405861473,1771368016092,152.49,0.000104,2]
[405861474,1771368016658,152.49,0.000104,2]
[405861475,1771368016888,5000.0,0.00013001,2]
[405861476,1771368017131,152.49,0.000105,2]
[405861477,1771368017718,152.49,0.000105,2]
[405861478,1771368018347,152.49,0.000105,2]
[405861479,1771368018818,152.49,0.000105,2]
[405861480,1771368019394,152.49,0.000105,2]
[405861481,1771368019964,152.49,0.000106,2]
[405861482,1771368020962,152.49,0.000106,2]
[405861483,1771368021523,152.49,0.000106,2]
[405861484,1771368022098,152.49,0.000106,2]
[405861485,1771368022660,152.49,0.000107,2]
[405861486,1771368023227,152.49,0.000107,2]
[405861487,1771368023806,152.49,0.000107,2]
[405861488,1771368024541,4966.49001621,0.00013001,2]
[405861489,1771368032248,152.49,0.000107,2]
[405861490,1771368033208,152.49,0.000108,2]
[405861491,1771368033683,152.49,0.000108,2]
[405861492,1771368034700,152.49,0.000108,2]
[405861493,1771368035357,152.49,0.000108,2]
[405861494,1771368035984,152.49,0.000108,2]
[405861495,1771368036590,152.49,0.000109,2]
[405861496,1771368037160,152.49,0.000109,2]
[405861497,1771368037728,152.49,0.000109,2]
[405861498,1771368038776,152.49,0.000109,2]
[405861499,1771368039443,152.49,0.00011,2]
[405861500,1771368039829,5000.0,0.00013001,2]
[405861501,1771368039929,152.49,0.00011,2]
[405861502,1771368040478,152.49,0.00011,2]
[405861503,1771368055590,5000.0,0.00013001,2]
[405861504,1771368063553,5000.0,0.00013001,2]
[405861505,1771368078432,5000.0,0.00013001,2]
[405861506,1771368086203,5000.0,0.00013001,2]
[405861507,1771368096024,168.9333,0.00010723,2]
[405861508,1771368096218,168.9333,0.00010881,2]
[405861509,1771368096433,168.9333,0.00011038,2]
[405861510,1771368096629,168.9333,0.00011196,2]
[405861511,1771368096827,168.9333,0.00011354,2]
[405861512,1771368097045,168.9333,0.00011511,2]
[405861513,1771368097277,168.9333,0.00011669,2]
[405861514,1771368097482,168.9333,0.00011827,2]
[405861515,1771368097690,168.9333,0.00011984,2]
[405861516,1771368097907,168.9333,0.00012142,2]
[405861517,1771368098131,168.9333,0.000123,2]
[405861518,1771368098344,168.9333,0.00012458,2]
[405861519,1771368098543,168.9333,0.00012615,2]
[405861520,1771368108860,5000.0,0.00013001,2]
[405861521,1771368124289,5000.0,0.00013001,2]
[405861522,1771368132183,5000.0,0.00013001,2]
[405861523,1771368147784,522.30520716,0.00013001,2]
[405861524,1771368155783,5000.0,0.00013001,2]
[405861525,1771368177845,5000.0,0.00013001,2]
[405861526,1771368200217,5000.0,0.00013001,2]
[405861527,1771368222277,5000.0,0.00013001,2]
[405861528,1771368243915,5000.0,0.00013001,2]
[405861529,1771368267373,5000.0,0.00013001,2]
[405861530,1771368347133,-150.0,0.00013256,2]
[405861531,1771368347155,-14.25522284,0.00013272,2]
[405861533,1771368377875,1705.8028345,0.00012431,2]
[405861539,1771368554557,702.90476288,0.00013001,2]
[405861540,1771368560169,-150.0,0.00013206,2]
[405861541,1771368560189,-285.74477716,0.00013272,2]
[405861542,1771368560209,-249.0,0.00013272,2]
[405861543,1771368560231,-300.0,0.00013272,2]
[405861544,1771368560250,-548.35744713,0.00013273,2]
[405861545,1771368560269,-205.6078801,0.00013273,2]
[405861546,1771368560289,-500.0,0.00013273,2]
[405861547,1771368560310,-500.0,0.00013273,2]
[405861548,1771368560329,-500.0,0.00013273,2]
[405861549,1771368560349,-500.0,0.00013273,2]
[405861550,1771368560369,-500.0,0.00013273,2]
[405861551,1771368560390,-37037.29142082,0.00013342,2]
[405861552,1771368614250,294.0,0.00013273,2]
[405861569,1771368632164,-206.0,0.00013273,2]
[405861570,1771368632173,-99.54513982,0.00013273,2]
[405861586,1771368638392,-400.45486018,0.00013273,2]
[405861588,1771368638402,-500.0,0.00013273,2]
[405861590,1771368638412,-500.0,0.00013273,2]
[405861592,1771368638422,-7904.88949858,0.00013342,2]
[405861594,1771368638432,-1200.0,0.00013631,2]
[405861596,1771368638442,-2044.5857429,0.00013632,2]
[405861598,1771368638452,-300.0,0.00013673,2]
[405861600,1771368638462,-300.0,0.00013698,2]
[405861602,1771368638473,-1564.9237376,0.00013699,2]
[405861604,1771368638483,-500.0,0.00013699,2]
[405861606,1771368638494,-500.0,0.00013699,2]
[405861609,1771368638505,-500.0,0.00013699,2]
[405861611,1771368638515,-500.0,0.00013699,2]
[405861613,1771368638525,-304.73831557,0.00013699,2]
[405861615,1771368638534,-500.0,0.00013699,2]
[405861616,1771368638544,-500.0,0.00013699,2]
[405861618,1771368638554,-160.9611424,0.00013699,2]
[405861620,1771368638563,-500.0,0.00013699,2]
[405861623,1771368638573,-500.0,0.00013699,2]
[405861625,1771368638583,-500.0,0.00013699,2]
[405861627,1771368638593,-500.0,0.00013699,2]
[405861628,1771368638603,-500.0,0.00013699,2]
[405861630,1771368638613,-500.0,0.00013699,2]
[405861649,1771368638788,-500.0,0.00013699,2]
[405861651,1771368638799,-500.0,0.00013699,2]
[405861653,1771368638809,-1000.0,0.00013821,2]
[405861655,1771368638818,-1000.0,0.00013821,2]
[405861657,1771368638828,-1000.0,0.00013821,2]
[405861659,1771368638838,-1000.0,0.00013821,2]
[405861661,1771368638847,-372.37966543,0.00014247,2]
[405861663,1771368638857,-1000.0,0.00014247,2]
[405861665,1771368638866,-1000.0,0.00014247,2]
[405861667,1771368638875,-1000.0,0.00014247,2]
[405861669,1771368638885,-1000.0,0.00014247,2]
[405861671,1771368638894,-894.78648991,0.00014247,2]
[405861673,1771368638903,-1000.0,0.00014247,2]
[405861674,1771368638914,-1000.0,0.00014247,2]
[405861677,1771368638923,-1000.0,0.00014247,2]
[405861678,1771368638933,-1000.0,0.00014247,2]
[405861681,1771368638943,-1000.0,0.00014247,2]
[405861682,1771368638952,-1500.0,0.00014368,2]
[405861685,1771368638962,-1500.0,0.00014368,2]
[405861687,1771368638974,-1430.61666128,0.00014368,2]
[405861689,1771368638984,-1500.0,0.00014368,2]
[405861691,1771368638994,-156.7184165,0.0001476,2]
[405861693,1771368639003,-1392.4905786,0.0001476,2]
[405861695,1771368639013,-795.78254779,0.00014795,2]
[405861697,1771368639022,-1576.02363682,0.00014795,2]
[405861699,1771368639032,-466.06241182,0.00014795,2]
[405861701,1771368639042,-1500.0,0.00014795,2]
[405861703,1771368639051,-976.50239805,0.00014795,2]
[405861705,1771368639061,-1020.66567884,0.00014795,2]
[405861706,1771368639070,-1500.0,0.00014795,2]
[405861707,1771368639079,-1500.0,0.00014795,2]
[405861708,1771368639089,-1512.61500196,0.00014795,2]
[405861709,1771368639099,-401.32051711,0.00014916,2]
[405861710,1771368639108,-504.59027994,0.00014916,2]
[405861711,1771368639118,-908.26250389,0.00014916,2]
[405861712,1771368639128,-722.37693079,0.00014916,2]
[405861713,1771368639137,-2000.0,0.00014916,2]
[405861714,1771368639147,-2000.0,0.00014916,2]
[405861715,1771368639157,-2000.0,0.00014916,2]
[405861716,1771368639167,-347.3247171,0.00014956,2]
[405861717,1771368639177,-1614.68889581,0.00014993,2]
[405861718,1771368639187,-420.0,0.00015011,2]
[405861719,1771368639198,-357.88726275,0.00015039,2]
[405861720,1771368639208,-177.0,0.00015206,2]
[405861721,1771368639218,-1284.22565474,0.00015229,2]
[405861722,1771368639228,-151.0,0.00015342,2]
[405861723,1771368639238,-151.0,0.00015342,2]
[405861724,1771368639248,-2000.0,0.00015342,2]
[405861725,1771368639258,-2000.0,0.00015342,2]
[405861726,1771368639267,-2000.0,0.00015342,2]
[405861727,1771368639277,-625.18449078,0.00015422,2]
[405861728,1771368639287,-777.81699276,0.00015424,7]
[405861729,1771368639296,-409.01401457,0.00015456,2]
[405861730,1771368639306,-477.21,0.00015464,3]
[405861731,1771368639316,-385.69496648,0.00015464,2]
[405861732,1771368639326,-2500.0,0.00015464,2]
[405861733,1771368639335,-2500.0,0.00015464,2]
[405861734,1771368639345,-2006.60258554,0.00015572,2]
[405861735,1771368639355,-4973.7465513,0.00015579,2]
[405861736,1771368639364,-1392.4905789,0.00015579,2]
[405861737,1771368639374,-238.61,0.0001588,3]
[405861739,1771368639384,-715.84,0.0001588,3]
[405861741,1771368639393,-1111.43909473,0.00015889,2]
[405861743,1771368639403,-2500.0,0.0001589,2]
[405861745,1771368639412,-2500.0,0.0001589,2]
[405861747,1771368639421,-2500.0,0.0001589,2]
[405861749,1771368639430,-197.02745937,0.00015901,7]
[405861751,1771368639440,-918.6,0.00015951,2]
[405861752,1771368639449,-1136.68979591,0.0001598,7]
[405861754,1771368639459,-588.91631448,0.00016012,2]
[405861756,1771368639469,-3000.0,0.00016012,2]
[405861758,1771368639479,-160.096774,0.00016013,2]
[405861760,1771368639488,-250.0,0.00016023,2]
[405861762,1771368639497,-250.0,0.00016023,2]
[405861764,1771368639507,-268.35294335,0.00016023,2]
[405861766,1771368639516,-250.0,0.00016023,2]
[405861768,1771368639526,-250.0,0.00016023,2]
[405861770,1771368639536,-250.0,0.00016023,2]
[405861772,1771368639545,-250.0,0.00016023,2]
[405861774,1771368639555,-250.0,0.00016023,2]
[405861776,1771368639564,-250.0,0.00016023,2]
[405861778,1771368639574,-250.0,0.00016023,2]
[405861780,1771368639583,-250.0,0.00016023,2]
[405861782,1771368639593,-250.0,0.00016023,2]
[405861784,1771368639603,-250.0,0.00016023,2]
[405861786,1771368639612,-250.0,0.00016023,2]
[405861788,1771368639622,-250.0,0.00016023,2]
[405861790,1771368639632,-250.0,0.00016023,2]
[405861794,1771368639657,-267.42232408,0.00016023,2]
[405861796,1771368639669,-250.0,0.00016023,2]
[405861798,1771368639679,-168.3888056,0.00016023,2]
[405861800,1771368639689,-250.0,0.00016023,2]
[405861802,1771368639701,-250.0,0.00016023,2]
[405861805,1771368639711,-270.20005993,0.00016023,2]
[405861807,1771368639721,-174.61919141,0.00016023,2]
[405861809,1771368639732,-250.0,0.00016023,2]
[405861811,1771368639742,-250.0,0.00016023,2]
[405861813,1771368639756,-181.08010149,0.00016023,2]
[405861815,1771368639766,-250.0,0.00016023,2]
[405861817,1771368639776,-250.0,0.00016023,2]
[405861819,1771368639786,-187.78006525,0.00016023,2]
[405861821,1771368639796,-250.0,0.00016023,2]
[405861823,1771368639807,-194.72792766,0.00016023,2]
[405861825,1771368639817,-201.93286099,0.00016023,2]
[405861827,1771368639827,-168.78958132,0.00016023,2]
[405861830,1771368639838,-209.40437684,0.00016023,2]
[405861832,1771368639848,-250.0,0.00016023,2]
[405861834,1771368639857,-217.15233878,0.00016023,2]
[405861836,1771368639867,-250.0,0.00016023,2]
[405861838,1771368639877,-225.18697532,0.00016023,2]
[405861840,1771368639887,-500.0,0.00016023,2]
[405861842,1771368639897,-250.0,0.00016023,2]
[405861844,1771368639906,-233.51889341,0.00016023,2]
[405861846,1771368639917,-500.0,0.00016023,2]
[405861848,1771368639927,-250.0,0.00016023,2]
[405861850,1771368639937,-242.15909246,0.00016023,2]
[405861852,1771368639947,-500.0,0.00016023,2]
[405861854,1771368639957,-250.0,0.00016023,2]
[405861856,1771368639967,-251.11897888,0.00016023,2]
[405861858,1771368639978,-500.0,0.00016023,2]
[405861860,1771368639987,-250.0,0.00016023,2]
[405861861,1771368639998,-500.0,0.00016023,2]
[405861863,1771368640008,-260.4103811,0.00016023,2]
[405861865,1771368640017,-270.0455652,0.00016023,2]
[405861867,1771368640027,-500.0,0.00016023,2]
[405861868,1771368640037,-250.0,0.00016023,2]
[405861870,1771368640047,-500.0,0.00016023,2]
[405861872,1771368640057,-250.0,0.00016023,2]
[405861874,1771368640067,-258.32044638,0.00016023,2]
[405861876,1771368640076,-280.03725112,0.00016023,2]
[405861878,1771368640086,-500.0,0.00016023,2]
[405861880,1771368640095,-250.0,0.00016023,2]
[405861882,1771368640105,-500.0,0.00016023,2]
[405861884,1771368640114,-500.0,0.00016023,2]
[405861886,1771368640124,-290.39862941,0.00016023,2]
[405861888,1771368640138,-358.62786775,0.00016023,2]
[405861890,1771368640148,-500.0,0.00016023,2]
[405861892,1771368640158,-500.0,0.00016023,2]
[405861894,1771368640168,-500.0,0.00016023,2]
[405861896,1771368640178,-301.1433787,0.00016023,2]
[405861898,1771368640187,-500.0,0.00016023,2]
[405861900,1771368640197,-1615.50730578,0.00016051,2]
[405861902,1771368640207,-536.5928161,0.00016306,7]
[405861904,1771368640217,-150.0,0.00016438,2]
[405861906,1771368640227,-3000.0,0.00016438,2]
[405861908,1771368640237,-3000.0,0.00016438,2]
[405861910,1771368640247,-170.60158738,0.00016438,2]
[405861912,1771368640258,-3500.0,0.0001656,2]
[405861914,1771368640270,-954.42,0.00016834,3]
[405861916,1771368640279,-150.71150075,0.00016986,2]
[405861918,1771368640289,-1082.04553216,0.00016986,2]
[405861921,1771368640306,-2417.95446784,0.00016986,2]
[405861923,1771368640316,-3500.0,0.00016986,2]
[405861925,1771368640326,-168.81848678,0.00017084,2]
[405861927,1771368640338,-4000.0,0.00017108,2]
[405861928,1771368640349,-204.0,0.00017206,2]
[405861930,1771368640360,-477.22,0.0001725,3]
[405861932,1771368640370,-600.0,0.00017325,2]
[405861934,1771368640380,-394.42466163,0.00017449,2]
[405861936,1771368640390,-4000.0,0.00017534,2]
[405861938,1771368640400,-4000.0,0.00017534,2]
[405861940,1771368640410,-1109.7928645,0.00017554,2]
[405861942,1771368640419,-3289.72056371,0.00017656,2]
[405861944,1771368640429,-1370.0,0.00017822,2]
[405861946,1771368640439,-635.0,0.00017822,2]
[405861948,1771368640448,-724.0,0.00017822,2]
[405861949,1771368640458,-190.539,0.00017822,2]
[405861951,1771368640467,-426.0,0.00017822,2]
[405861953,1771368640477,-743.45912368,0.00017916,2]
[405861955,1771368640487,-247.6282595,0.00017995,2]
[405861957,1771368640496,-23654.29062751,0.00018,2]
[405861959,1771368640506,-34470.14657289,0.00018,2]
[405861961,1771368640516,-2570.17267426,0.00018082,2]
[405861963,1771368640525,-3388.18719191,0.00018082,2]
[405861965,1771368640535,-61636.25772538,0.0001899,2]
[405861967,1771368640545,-720.0,0.00019058,2]
[405861969,1771368640555,-204.295,0.00019174,2]
[405861971,1771368640564,-225.005,0.00019174,2]
[405861973,1771368640573,-151.187,0.00019174,2]
[405861974,1771368640583,-151.0,0.00019178,2]
[405861976,1771368640592,-151.0,0.00019178,2]
[405861978,1771368640602,-162.14,0.000192,2]
[405861980,1771368640616,-231.0,0.00019206,2]
[405861982,1771368640625,-469.66208838,0.00019882,2]
[405861984,1771368640635,-500.0,0.00019899,2]
[405861986,1771368640649,-151.09869203,0.0002,2]
[405861990,1771368640672,-302.0,0.0002,2]
[405862268,1771368643828,-819.66,0.0002,2]
[405862269,1771368643841,-652.25,0.0002,2]
[405862520,1771368646420,-2960.44484411,0.0002,2]
[405863444,1771369045590,2178.8936961,0.00013001,2]
[405863445,1771369301136,-2054.46985531,0.0001314,2]
[405863447,1771369437120,5000.0,0.00013001,2]
[405863450,1771369459742,5000.0,0.00013001,2]
[405863451,1771369482239,5000.0,0.00013001,2]
[405863456,1771369504278,5000.0,0.00013001,2]
[405863457,1771369527310,5000.0,0.00013001,2]
[405863458,1771369541136,-150.0,0.00013206,2]
[405863459,1771369541157,-357.0,0.00013272,2]
[405863460,1771369541180,-500.0,0.00013273,2]
[405863461,1771369541199,-500.0,0.00013273,2]
[405863462,1771369541221,-500.0,0.00013273,2]
[405863463,1771369541243,-505.16865995,0.00013273,2]
[405863464,1771369541264,-500.0,0.00013273,2]
[405863465,1771369541284,-300.0,0.00013333,2]
[405863466,1771369541303,-300.0,0.00013333,2]
[405863467,1771369541323,-300.0,0.00013333,2]
[405863468,1771369541342,-184.0,0.00013333,2]
[405863469,1771369541365,-115.50063451,0.00013334,2]
[405863470,1771369653137,-580.31664035,0.00013201,2]
[405863472,1771369699173,11892.8259924,0.00012706,2]
[405863473,1771369744324,5000.0,0.00013001,2]
[405863474,1771369755097,-150.0,0.00013237,2]
[405863475,1771369755119,-144.0,0.00013273,2]
[405863477,1771369767084,-372.20241998,0.0001314,2]
[405863520,1771369838566,-4627.79758002,0.0001314,2]
[405863522,1771369838576,-500.0,0.00013273,2]
[405863524,1771369838587,-500.0,0.00013273,2]
[405863526,1771369838596,-500.0,0.00013698,2]
[405863528,1771369838606,-240.0,0.00013698,2]
[405863530,1771369838616,-300.0,0.00013698,2]
[405863533,1771369838630,-501.44248155,0.00013699,2]
[405863535,1771369838640,-500.0,0.00013699,2]
[405863537,1771369838651,-215.67000002,0.00013699,2]
[405863539,1771369838661,-234.23557593,0.00013699,2]
[405863541,1771369838671,-500.0,0.00013699,2]
[405863543,1771369838681,-500.0,0.00013699,2]
[405863545,1771369838690,-301.54490954,0.00013699,2]
[405863547,1771369838700,-412.64967482,0.00013699,2]
[405863549,1771369838709,-500.0,0.00013699,2]
[405863551,1771369838719,-500.0,0.00013699,2]
[405863553,1771369838729,-214.17974413,0.00013821,2]
[405863555,1771369838739,-1000.0,0.00013821,2]
[405863557,1771369838749,-1000.0,0.00013821,2]
[405863559,1771369838759,-1000.0,0.00013821,2]
[405863562,1771369838770,-209.53631024,0.00014247,2]
[405863564,1771369838781,-1000.0,0.00014247,2]
[405863566,1771369838792,-1000.0,0.00014247,2]
[405863568,1771369838802,-432.66951923,0.00014247,2]
[405863570,1771369838812,-544.12464876,0.00014247,2]
[405863572,1771369838824,-500.0,0.00014368,2]
[405863574,1771369838834,-218.02719115,0.00014368,2]
[405863576,1771369838845,-1500.0,0.00014368,2]
[405863578,1771369838854,-321.06082999,0.00014795,2]
[405863580,1771369838864,-1500.0,0.00014795,2]
[405863582,1771369838875,-902.34779771,0.00014916,2]
[405863584,1771369838885,-500.0,0.00015,2]
[405863586,1771369838895,-202.2282932,0.00015068,2]
[405863588,1771369838904,-177.0,0.00015237,2]
[405863590,1771369838914,-2000.0,0.00015342,2]
[405863592,1771369838923,-2511.85365811,0.0001589,2]
[405863594,1771369838933,-500.0,0.00016,2]
[405863596,1771369838943,-168.3888056,0.00016344,2]
[405863598,1771369838953,-301.57891343,0.00016344,2]
[405863600,1771369838962,-449.55541788,0.00016438,2]
[405863602,1771369838972,-242.402309,0.00017051,2]
[405863604,1771369838982,-168.0,0.0001708,2]
[405863607,1771369838992,-204.0,0.00017237,2]
[405863609,1771369839002,-2224.93826544,0.0001738,2]
[405863610,1771369839011,-635.0,0.0001748,2]
[405863612,1771369839021,-724.0,0.0001748,2]
[405863615,1771369839030,-190.539,0.0001748,2]
[405863617,1771369839040,-426.0,0.0001748,2]
[405863619,1771369839050,-449.432,0.0001748,2]
[405863620,1771369839059,-168.0,0.00017538,2]
[405863623,1771369839071,-743.45912368,0.00017912,2]
[405863625,1771369839081,-150.0,0.00018166,2]
[405863627,1771369839091,-2172.0,0.00018166,2]
[405863629,1771369839105,-500.0,0.00019,2]
[405863631,1771369839115,-500.0,0.00019,2]
[405863633,1771369839125,-231.0,0.00019237,2]
[405863635,1771369839138,-90802.26272439,0.0002,2]
[405863658,1771369839345,-5064.00534593,0.0002,2]
[405864122,1771369843883,-1429.47598442,0.0002,2]
[405864286,1771369846445,-749.41771168,0.0002,2]
[405865098,1771370241327,5000.0,0.00013001,2]
[405865100,1771370457945,5000.0,0.00013001,2]
[405865101,1771370480616,5000.0,0.00013001,2]
[405865102,1771370503513,5000.0,0.00013001,2]
[405865103,1771370525524,5000.0,0.00013001,2]
[405865104,1771370547433,5000.0,0.00013001,2]
[405865105,1771370570149,5000.0,0.00013001,2]
[405865106,1771370593495,5000.0,0.00013001,2]
[405865107,1771370616123,5000.0,0.00013001,2]
[405865108,1771370638824,5000.0,0.00013001,2]
[405865109,1771370661116,5000.0,0.00013001,2]
[405865110,1771370683827,5000.0,0.00013001,2]
[405865120,1771370706250,5000.0,0.00013001,2]
[405865121,1771370728973,5000.0,0.00013001,2]
[405865122,1771370752043,5000.0,0.00013001,2]
[405865123,1771370756186,-150.0,0.00013239,2]
[405865124,1771370756208,-475.97650403,0.00013273,2]
[405865125,1771370756228,-83.97934136,0.00013404,2]
[405865130,1771370845111,-499.95260987,0.0001327,2]
[405865131,1771370887887,10004.13520085,0.000125,2]